[Event "*** Titled Tuesday Blitz"]
[Site "Chess.com"]
[Date "2019.01.01"]
[Round "10"]
[White "Maili15"]
[Black "Viaje"]
[Result "1-0"]
[WhiteElo "2310"]
[BlackElo "2327"]
[TimeControl "180+2"]
[EndTime "15:19:38 PST"]
[Termination "Maili15 won by resignation"]

1. d4 {[%clk 0:03:01.9]} 1... Nf6 {[%clk 0:03:00.4]} 2. c4 {[%clk 0:03:02.5]}
2... c5 {[%clk 0:03:01.2]} 3. d5 {[%clk 0:03:03.5]} 3... b5 {[%clk 0:03:02.8]}
4. cxb5 {[%clk 0:03:04.6]} 4... a6 {[%clk 0:03:04.4]} 5. bxa6 {[%clk 0:03:06.5]}
5... g6 {[%clk 0:03:05.2]} 6. Nc3 {[%clk 0:03:03.1]} 6... Bg7 {[%clk 0:03:06.5]}
7. e4 {[%clk 0:03:02.6]} 7... O-O {[%clk 0:03:08]} 8. Nf3 {[%clk 0:02:55.1]}
8... Qa5 {[%clk 0:03:08.9]} 9. Bd2 {[%clk 0:02:46.3]} 9... Bxa6 {[%clk
0:03:09.9]} 10. Be2 {[%clk 0:02:44.3]} 10... Qb4 {[%clk 0:03:07.7]} 11. e5
{[%clk 0:02:19.3]} 11... Ne4 {[%clk 0:03:07.6]} 12. O-O {[%clk 0:02:06.4]} 12...
Nxd2 {[%clk 0:02:38.1]} 13. Qxd2 {[%clk 0:02:06.2]} 13... d6 {[%clk 0:02:15.5]}
14. Rfe1 {[%clk 0:01:51.5]} 14... Nd7 {[%clk 0:02:07.3]} 15. exd6 {[%clk
0:01:43.2]} 15... exd6 {[%clk 0:02:07.9]} 16. Bxa6 {[%clk 0:01:42.2]} 16... Rxa6
{[%clk 0:02:09.8]} 17. Re7 {[%clk 0:01:41.7]} 17... Nf6 {[%clk 0:01:56.1]} 18.
Rae1 {[%clk 0:01:27.6]} 18... h6 {[%clk 0:01:36]} 19. h3 {[%clk 0:01:24.5]}
19... Rb8 {[%clk 0:01:27.1]} 20. b3 {[%clk 0:01:20.9]} 20... c4 {[%clk
0:01:28.1]} 21. bxc4 {[%clk 0:00:53.8]} 21... Qxc4 {[%clk 0:01:30]} 22. Rc1
{[%clk 0:00:34.7]} 22... Rc8 {[%clk 0:01:22.7]} 23. Ne2 {[%clk 0:00:34.1]} 23...
Nxd5 {[%clk 0:00:59.4]} 24. Rxc4 {[%clk 0:00:33.2]} 24... Nxe7 {[%clk
0:01:00.6]} 25. Rxc8+ {[%clk 0:00:33.3]} 25... Nxc8 {[%clk 0:01:02.5]} 26. Ned4
{[%clk 0:00:32.2]} 1-0

[Event "*** Titled Tuesday Blitz"]
[Site "Chess.com"]
[Date "2019.01.01"]
[Round "10"]
[White "nochewycandy"]
[Black "Makalexa"]
[Result "1-0"]
[WhiteElo "2265"]
[BlackElo "2132"]
[TimeControl "180+2"]
[EndTime "15:19:53 PST"]
[Termination "nochewycandy won by resignation"]

1. e4 {[%clk 0:03:01.9]} 1... e5 {[%clk 0:02:57.5]} 2. Nc3 {[%clk 0:03:02.1]}
2... Nc6 {[%clk 0:02:51.1]} 3. f4 {[%clk 0:03:03.1]} 3... d6 {[%clk 0:02:49.7]}
4. Nf3 {[%clk 0:03:03.9]} 4... g6 {[%clk 0:02:50.4]} 5. Bc4 {[%clk 0:03:05]}
5... Bg7 {[%clk 0:02:50.8]} 6. O-O {[%clk 0:03:05.1]} 6... Be6 {[%clk 0:02:50]}
7. d3 {[%clk 0:03:01.3]} 7... Bxc4 {[%clk 0:02:50]} 8. dxc4 {[%clk 0:03:03.2]}
8... Nge7 {[%clk 0:02:50.4]} 9. Nd5 {[%clk 0:02:57.8]} 9... O-O {[%clk
0:02:48.1]} 10. c3 {[%clk 0:02:47.8]} 10... f6 {[%clk 0:02:48.8]} 11. Nh4 {[%clk
0:02:39.7]} 11... Nc8 {[%clk 0:02:46.6]} 12. f5 {[%clk 0:02:39.9]} 12... g5
{[%clk 0:02:46]} 13. Nf3 {[%clk 0:02:40.7]} 13... N6e7 {[%clk 0:02:46.3]} 14. h4
{[%clk 0:02:36.8]} 14... g4 {[%clk 0:02:40.3]} 15. Nh2 {[%clk 0:02:38]} 15... h5
{[%clk 0:02:41.2]} 16. Re1 {[%clk 0:02:35]} 16... c6 {[%clk 0:02:42.3]} 17. Ne3
{[%clk 0:02:36.3]} 17... Nb6 {[%clk 0:02:38.6]} 18. a4 {[%clk 0:02:35.1]} 18...
a5 {[%clk 0:02:34.4]} 19. Nhf1 {[%clk 0:02:36.3]} 19... d5 {[%clk 0:02:34.2]}
20. cxd5 {[%clk 0:02:36.3]} 20... cxd5 {[%clk 0:02:35.3]} 21. Qb3 {[%clk
0:02:36.9]} 21... Kh7 {[%clk 0:02:32.4]} 22. Ng3 {[%clk 0:02:35.7]} 22... d4
{[%clk 0:02:16.1]} 23. cxd4 {[%clk 0:02:34.2]} 23... exd4 {[%clk 0:02:17.1]} 24.
Nc4 {[%clk 0:02:32.3]} 24... Nxc4 {[%clk 0:02:14.9]} 25. Qxc4 {[%clk 0:02:34.2]}
25... Nc6 {[%clk 0:02:15.8]} 26. Bf4 {[%clk 0:02:30.3]} 26... Qb6 {[%clk
0:02:10.2]} 27. Nxh5 {[%clk 0:02:27.2]} 27... Rac8 {[%clk 0:02:07.2]} 28. Qb5
{[%clk 0:02:16.6]} 28... Qxb5 {[%clk 0:01:58.4]} 29. axb5 {[%clk 0:02:17.6]}
29... Nb4 {[%clk 0:01:59.8]} 30. Rxa5 {[%clk 0:02:17.2]} 30... Nd3 {[%clk
0:01:54.2]} 31. Rd1 {[%clk 0:02:14.4]} 31... Nxf4 {[%clk 0:01:43.7]} 32. Nxf4
{[%clk 0:02:14.4]} 32... Bh6 {[%clk 0:01:44.8]} 33. Nd5 {[%clk 0:02:09.9]} 33...
g3 {[%clk 0:01:24.4]} 34. Ra3 {[%clk 0:02:09.9]} 34... Rc2 {[%clk 0:01:17.3]}
35. Rxg3 {[%clk 0:02:10.5]} 35... Rxb2 {[%clk 0:01:16.4]} 36. Rxd4 {[%clk
0:02:09.6]} 36... Rxb5 {[%clk 0:01:16.9]} 37. Rc4 {[%clk 0:02:07.8]} 37... Rf7
{[%clk 0:01:16.9]} 38. Rc7 {[%clk 0:02:02.5]} 38... Rb1+ {[%clk 0:01:08.6]} 39.
Kh2 {[%clk 0:01:59.7]} 39... Rxc7 {[%clk 0:00:23.3]} 40. Nxf6+ {[%clk
0:02:00.2]} 1-0

[Event "*** Titled Tuesday Blitz"]
[Site "Chess.com"]
[Date "2019.01.01"]
[Round "10"]
[White "WorldChampionBulletChess"]
[Black "abubakrtagelsir"]
[Result "0-1"]
[WhiteElo "2118"]
[BlackElo "2252"]
[TimeControl "180+2"]
[EndTime "15:20:10 PST"]
[Termination "abubakrtagelsir won by checkmate"]

1. d4 {[%clk 0:03:01.9]} 1... d5 {[%clk 0:03:00.6]} 2. c4 {[%clk 0:03:01.2]}
2... c6 {[%clk 0:03:01.3]} 3. Nf3 {[%clk 0:03:02.5]} 3... Nf6 {[%clk 0:03:01.6]}
4. Nc3 {[%clk 0:03:03.7]} 4... dxc4 {[%clk 0:03:02.1]} 5. a4 {[%clk 0:03:02.6]}
5... Bf5 {[%clk 0:03:01.2]} 6. Bf4 {[%clk 0:02:48.7]} 6... e6 {[%clk 0:02:58]}
7. Ne5 {[%clk 0:02:46.9]} 7... Nd5 {[%clk 0:02:53.7]} 8. Bg3 {[%clk 0:02:42.7]}
8... Bb4 {[%clk 0:02:52.2]} 9. Rc1 {[%clk 0:02:39.6]} 9... b5 {[%clk 0:02:47.3]}
10. e3 {[%clk 0:02:33.9]} 10... Qa5 {[%clk 0:02:43.8]} 11. Qd2 {[%clk
0:02:01.2]} 11... O-O {[%clk 0:02:18.4]} 12. axb5 {[%clk 0:01:59]} 12... cxb5
{[%clk 0:02:18.9]} 13. Be2 {[%clk 0:01:56.6]} 13... f6 {[%clk 0:02:19.4]} 14.
Nf3 {[%clk 0:01:56.9]} 14... Nc6 {[%clk 0:02:11]} 15. O-O {[%clk 0:01:51.4]}
15... Rad8 {[%clk 0:01:56.2]} 16. Ra1 {[%clk 0:01:47.7]} 16... Bxc3 {[%clk
0:01:57]} 17. bxc3 {[%clk 0:01:46.8]} 17... Qb6 {[%clk 0:01:56.1]} 18. Nh4
{[%clk 0:01:43.6]} 18... Rc8 {[%clk 0:01:47.8]} 19. Nxf5 {[%clk 0:01:43.7]}
19... exf5 {[%clk 0:01:48.3]} 20. Bd6 {[%clk 0:01:45.4]} 20... Rf7 {[%clk
0:01:42.7]} 21. Bc5 {[%clk 0:01:47.3]} 21... Qb7 {[%clk 0:01:41.6]} 22. Qc2
{[%clk 0:01:48.1]} 22... g6 {[%clk 0:01:41.2]} 23. Bf3 {[%clk 0:01:49.3]} 23...
Rd7 {[%clk 0:01:39.4]} 24. e4 {[%clk 0:01:49.3]} 24... fxe4 {[%clk 0:01:39.8]}
25. Bxe4 {[%clk 0:01:51.2]} 25... f5 {[%clk 0:01:39.9]} 26. Bxf5 {[%clk
0:01:51.9]} 26... gxf5 {[%clk 0:01:40.1]} 27. Qxf5 {[%clk 0:01:53.8]} 27... Nd8
{[%clk 0:01:37.7]} 28. Rxa7 {[%clk 0:01:51.8]} 28... Rf7 {[%clk 0:01:30.2]} 29.
Qg5+ {[%clk 0:01:38.2]} 29... Rg7 {[%clk 0:01:29.4]} 30. Qf5 {[%clk 0:01:31.9]}
30... Rf7 {[%clk 0:01:25.6]} 31. Qg4+ {[%clk 0:01:16.6]} 31... Rg7 {[%clk
0:01:24.4]} 32. Qf3 {[%clk 0:01:17.1]} 32... Rf7 {[%clk 0:01:24.2]} 33. Qg3+
{[%clk 0:01:17.1]} 33... Rg7 {[%clk 0:01:24]} 34. Qh3 {[%clk 0:01:06.2]} 34...
Nf4 {[%clk 0:01:11.2]} 35. Qh6 {[%clk 0:00:49.5]} 35... Qxg2# {[%clk 0:01:09.4]}
0-1

[Event "*** Titled Tuesday Blitz"]
[Site "Chess.com"]
[Date "2019.01.01"]
[Round "10"]
[White "essequamvideris"]
[Black "KenanGarayev"]
[Result "0-1"]
[WhiteElo "2441"]
[BlackElo "2864"]
[TimeControl "180+2"]
[EndTime "15:20:15 PST"]
[Termination "KenanGarayev won by resignation"]

1. Nf3 {[%clk 0:03:01.9]} 1... Nf6 {[%clk 0:03:00.6]} 2. g3 {[%clk 0:03:02.4]}
2... g6 {[%clk 0:03:00.1]} 3. Bg2 {[%clk 0:03:04.3]} 3... Bg7 {[%clk 0:03:00.8]}
4. O-O {[%clk 0:03:04.2]} 4... O-O {[%clk 0:03:02.7]} 5. c4 {[%clk 0:03:05.2]}
5... d6 {[%clk 0:03:01.5]} 6. Nc3 {[%clk 0:03:05]} 6... Nc6 {[%clk 0:02:59.3]}
7. d4 {[%clk 0:03:06.2]} 7... a6 {[%clk 0:02:58.8]} 8. a3 {[%clk 0:03:05]} 8...
Rb8 {[%clk 0:02:47.9]} 9. b4 {[%clk 0:03:01.9]} 9... Bg4 {[%clk 0:02:43.2]} 10.
Bb2 {[%clk 0:02:58.8]} 10... Nd7 {[%clk 0:02:37.6]} 11. Nd5 {[%clk 0:02:55.4]}
11... Bxf3 {[%clk 0:02:32.8]} 12. Bxf3 {[%clk 0:02:54.4]} 12... e6 {[%clk
0:02:28.6]} 13. Ne3 {[%clk 0:02:49.6]} 13... e5 {[%clk 0:02:29.8]} 14. Bxc6
{[%clk 0:02:41.1]} 14... bxc6 {[%clk 0:02:31.7]} 15. dxe5 {[%clk 0:02:32.8]}
15... Nxe5 {[%clk 0:02:31.4]} 16. Rb1 {[%clk 0:02:30.7]} 16... f5 {[%clk
0:02:22.1]} 17. Qa4 {[%clk 0:02:29.7]} 17... f4 {[%clk 0:02:21]} 18. Bxe5 {[%clk
0:02:14]} 18... Bxe5 {[%clk 0:02:19.3]} 19. Ng4 {[%clk 0:02:12.4]} 19... Bg7
{[%clk 0:02:14.1]} 20. f3 {[%clk 0:02:00]} 20... fxg3 {[%clk 0:02:09]} 21. hxg3
{[%clk 0:02:01.9]} 21... Qg5 {[%clk 0:02:07.6]} 22. Qxc6 {[%clk 0:01:55.2]}
22... h5 {[%clk 0:02:05.1]} 23. Nh2 {[%clk 0:01:43.8]} 23... Qxg3+ {[%clk
0:02:00]} 24. Kh1 {[%clk 0:01:42.1]} 24... Be5 {[%clk 0:02:01.9]} 25. f4 {[%clk
0:01:33.7]} 25... Rxf4 {[%clk 0:02:02.3]} 26. Rxf4 {[%clk 0:01:26.9]} 26... Bxf4
{[%clk 0:02:04.2]} 27. Qg2 {[%clk 0:01:26.7]} 27... Qxg2+ {[%clk 0:01:52.8]} 28.
Kxg2 {[%clk 0:01:28.6]} 28... Bxh2 {[%clk 0:01:54.6]} 29. Kxh2 {[%clk
0:01:29.6]} 29... a5 {[%clk 0:01:54.7]} 30. Kg3 {[%clk 0:01:24.7]} 30... axb4
{[%clk 0:01:51.7]} 31. axb4 {[%clk 0:01:26.6]} 31... Re8 {[%clk 0:01:48.6]} 32.
Kf3 {[%clk 0:01:25.8]} 32... Kg7 {[%clk 0:01:47.7]} 33. b5 {[%clk 0:01:26.8]}
33... Kf6 {[%clk 0:01:46.7]} 34. e4 {[%clk 0:01:28]} 34... g5 {[%clk 0:01:44.2]}
35. Ke3 {[%clk 0:01:20.1]} 35... h4 {[%clk 0:01:35]} 36. Rf1+ {[%clk 0:01:11.8]}
36... Kg6 {[%clk 0:01:34.9]} 37. Rf5 {[%clk 0:01:00.7]} 37... Rh8 {[%clk
0:01:30.5]} 38. Kf3 {[%clk 0:00:43.7]} 38... h3 {[%clk 0:01:27.9]} 39. Kg4
{[%clk 0:00:43.9]} 39... Rh4+ {[%clk 0:01:28.8]} 40. Kg3 {[%clk 0:00:45]} 40...
h2 {[%clk 0:01:29.3]} 0-1

[Event "*** Titled Tuesday Blitz"]
[Site "Chess.com"]
[Date "2019.01.01"]
[Round "10"]
[White "IMAghasiyevKamal"]
[Black "snowlord"]
[Result "0-1"]
[WhiteElo "2554"]
[BlackElo "2704"]
[TimeControl "180+2"]
[EndTime "15:20:18 PST"]
[Termination "snowlord won by resignation"]

1. d4 {[%clk 0:02:56.2]} 1... Nf6 {[%clk 0:03:00]} 2. c4 {[%clk 0:02:56.4]} 2...
g6 {[%clk 0:03:01.2]} 3. Nc3 {[%clk 0:02:56.3]} 3... d5 {[%clk 0:03:02.7]} 4.
cxd5 {[%clk 0:02:55.4]} 4... Nxd5 {[%clk 0:03:04.6]} 5. e4 {[%clk 0:02:55.5]}
5... Nxc3 {[%clk 0:03:06.2]} 6. bxc3 {[%clk 0:02:55.9]} 6... Bg7 {[%clk
0:03:07.8]} 7. Nf3 {[%clk 0:02:53.2]} 7... c5 {[%clk 0:03:06.7]} 8. Be3 {[%clk
0:02:53.6]} 8... Qa5 {[%clk 0:03:07]} 9. Nd2 {[%clk 0:02:54.2]} 9... Bd7 {[%clk
0:03:04.9]} 10. Be2 {[%clk 0:02:25.3]} 10... O-O {[%clk 0:03:03.7]} 11. O-O
{[%clk 0:02:25.1]} 11... b6 {[%clk 0:02:45.8]} 12. dxc5 {[%clk 0:02:07.3]} 12...
Bxc3 {[%clk 0:02:42.8]} 13. Rc1 {[%clk 0:02:02.2]} 13... Bg7 {[%clk 0:02:42.8]}
14. cxb6 {[%clk 0:01:53.7]} 14... axb6 {[%clk 0:02:42.4]} 15. Nc4 {[%clk
0:01:54.4]} 15... Qxa2 {[%clk 0:02:42.2]} 16. Nxb6 {[%clk 0:01:55.1]} 16... Ba4
{[%clk 0:02:30]} 17. Qe1 {[%clk 0:01:47.3]} 17... Ra7 {[%clk 0:02:30.1]} 18. Bc4
{[%clk 0:01:35.8]} 18... Bb3 {[%clk 0:02:30.6]} 19. Bxb3 {[%clk 0:01:04]} 19...
Qxb3 {[%clk 0:02:31.4]} 20. Nd5 {[%clk 0:01:03.9]} 20... Rd7 {[%clk 0:02:27.4]}
21. Rb1 {[%clk 0:01:01.9]} 21... Qd3 {[%clk 0:02:25.6]} 22. Bc5 {[%clk
0:00:55.6]} 22... Nc6 {[%clk 0:02:10.6]} 23. Qd1 {[%clk 0:00:50.7]} 23... Qc4
{[%clk 0:01:40.5]} 24. Rc1 {[%clk 0:00:27.4]} 24... Qxe4 {[%clk 0:01:13.8]} 25.
Nf6+ {[%clk 0:00:22.8]} 25... Bxf6 {[%clk 0:01:15.2]} 26. Qxd7 {[%clk
0:00:22.6]} 26... Ne5 {[%clk 0:01:16.8]} 27. Qh3 {[%clk 0:00:18.2]} 27... Nd3
{[%clk 0:01:13]} 28. Rc2 {[%clk 0:00:19.1]} 28... Nf4 {[%clk 0:01:04.9]} 29. Qf3
{[%clk 0:00:16]} 29... Qxc2 {[%clk 0:01:04.2]} 30. Qxf4 {[%clk 0:00:17.1]} 30...
Qxc5 {[%clk 0:01:04.9]} 0-1

[Event "*** Titled Tuesday Blitz"]
[Site "Chess.com"]
[Date "2019.01.01"]
[Round "10"]
[White "riconaipe"]
[Black "TBergh98"]
[Result "1/2-1/2"]
[WhiteElo "2458"]
[BlackElo "2297"]
[TimeControl "180+2"]
[EndTime "15:20:28 PST"]
[Termination "Game drawn - insufficient material"]

1. d4 {[%clk 0:03:01.9]} 1... Nf6 {[%clk 0:03:00.3]} 2. c4 {[%clk 0:03:02.2]}
2... g6 {[%clk 0:03:01.7]} 3. Nc3 {[%clk 0:03:03.3]} 3... Bg7 {[%clk 0:03:03]}
4. e4 {[%clk 0:03:04.5]} 4... d6 {[%clk 0:03:04.5]} 5. Nge2 {[%clk 0:03:06]}
5... O-O {[%clk 0:03:02.4]} 6. f3 {[%clk 0:03:06.6]} 6... a6 {[%clk 0:02:57.2]}
7. Be3 {[%clk 0:03:06]} 7... Nc6 {[%clk 0:02:51.9]} 8. Qd2 {[%clk 0:03:05.8]}
8... Rb8 {[%clk 0:02:38]} 9. Rc1 {[%clk 0:03:01.1]} 9... Bd7 {[%clk 0:02:35.4]}
10. a3 {[%clk 0:02:54.9]} 10... b5 {[%clk 0:02:36.6]} 11. cxb5 {[%clk
0:02:54.3]} 11... axb5 {[%clk 0:02:38.5]} 12. b4 {[%clk 0:02:55.5]} 12... e6
{[%clk 0:02:22.5]} 13. Ng3 {[%clk 0:02:54.2]} 13... Re8 {[%clk 0:02:19.1]} 14.
Bxb5 {[%clk 0:02:46.7]} 14... h5 {[%clk 0:02:20.2]} 15. O-O {[%clk 0:02:44.9]}
15... h4 {[%clk 0:02:19]} 16. Nge2 {[%clk 0:02:45.9]} 16... Nh5 {[%clk
0:01:47.1]} 17. a4 {[%clk 0:02:39.2]} 17... Nxb4 {[%clk 0:01:45.1]} 18. Bg5
{[%clk 0:02:37.2]} 18... Bf6 {[%clk 0:01:36.6]} 19. Bxf6 {[%clk 0:02:37.7]}
19... Nxf6 {[%clk 0:01:38.5]} 20. e5 {[%clk 0:02:38.1]} 20... Nfd5 {[%clk
0:01:36.3]} 21. Nxd5 {[%clk 0:02:34.7]} 21... Nxd5 {[%clk 0:01:36.3]} 22. Rb1
{[%clk 0:02:30.3]} 22... Bxb5 {[%clk 0:01:05.8]} 23. axb5 {[%clk 0:02:30.1]}
23... Qd7 {[%clk 0:01:06.4]} 24. Nc3 {[%clk 0:02:13.1]} 24... Nxc3 {[%clk
0:00:40.7]} 25. Qxc3 {[%clk 0:02:12.7]} 25... dxe5 {[%clk 0:00:38.8]} 26. dxe5
{[%clk 0:02:12.9]} 26... Rxb5 {[%clk 0:00:33.9]} 27. Rxb5 {[%clk 0:02:12.4]}
27... Qxb5 {[%clk 0:00:35.8]} 28. Qxc7 {[%clk 0:02:12.5]} 28... Qe2 {[%clk
0:00:29.1]} 29. Qc3 {[%clk 0:02:03.8]} 29... Rd8 {[%clk 0:00:24.6]} 30. Qe1
{[%clk 0:02:03.5]} 30... Rd2 {[%clk 0:00:22.1]} 31. Qxe2 {[%clk 0:02:00.8]}
31... Rxe2 {[%clk 0:00:24]} 32. f4 {[%clk 0:02:01.7]} 32... Kg7 {[%clk
0:00:23.1]} 33. Rf2 {[%clk 0:02:02.7]} 33... Re1+ {[%clk 0:00:23.6]} 34. Rf1
{[%clk 0:02:04.2]} 34... Re2 {[%clk 0:00:25.2]} 35. Rf2 {[%clk 0:02:05.4]} 35...
Re1+ {[%clk 0:00:26.6]} 36. Rf1 {[%clk 0:02:06.7]} 36... Re2 {[%clk 0:00:28.1]}
37. g3 {[%clk 0:02:07.1]} 37... hxg3 {[%clk 0:00:28.7]} 38. hxg3 {[%clk
0:02:07.3]} 38... Kh6 {[%clk 0:00:28.2]} 39. Rf2 {[%clk 0:02:07.7]} 39... Rxf2
{[%clk 0:00:24.4]} 40. Kxf2 {[%clk 0:02:08.5]} 40... g5 {[%clk 0:00:25.8]} 41.
Kf3 {[%clk 0:02:04.8]} 41... gxf4 {[%clk 0:00:26.4]} 42. gxf4 {[%clk 0:02:06]}
42... Kh5 {[%clk 0:00:26.8]} 43. Kg3 {[%clk 0:02:05.6]} 43... Kh6 {[%clk
0:00:27.2]} 44. Kh4 {[%clk 0:02:06]} 44... Kg6 {[%clk 0:00:28.4]} 45. Kg4 {[%clk
0:02:07.4]} 45... f6 {[%clk 0:00:27.8]} 46. exf6 {[%clk 0:02:01.5]} 46... Kxf6
{[%clk 0:00:29.7]} 47. Kf3 {[%clk 0:02:02.9]} 47... Kf5 {[%clk 0:00:30.5]} 48.
Ke3 {[%clk 0:02:04.3]} 48... e5 {[%clk 0:00:32.1]} 49. fxe5 {[%clk 0:02:05.1]}
49... Kxe5 {[%clk 0:00:34]} 1/2-1/2

[Event "*** Titled Tuesday Blitz"]
[Site "Chess.com"]
[Date "2019.01.01"]
[Round "10"]
[White "VeraNebolsina"]
[Black "2nd_life"]
[Result "0-1"]
[WhiteElo "2379"]
[BlackElo "2456"]
[TimeControl "180+2"]
[EndTime "15:20:32 PST"]
[Termination "2nd_life won by resignation"]

1. e4 {[%clk 0:03:01.9]} 1... e5 {[%clk 0:03:00.6]} 2. Nf3 {[%clk 0:03:03]} 2...
Nc6 {[%clk 0:03:01.8]} 3. Nc3 {[%clk 0:03:04]} 3... Nf6 {[%clk 0:03:02.7]} 4. d4
{[%clk 0:03:05]} 4... exd4 {[%clk 0:03:04]} 5. Nxd4 {[%clk 0:03:06.4]} 5... Bb4
{[%clk 0:03:05.1]} 6. Nxc6 {[%clk 0:03:07.6]} 6... bxc6 {[%clk 0:03:06]} 7. Bd3
{[%clk 0:03:09.2]} 7... d5 {[%clk 0:03:07.1]} 8. exd5 {[%clk 0:03:10.2]} 8...
O-O {[%clk 0:03:08.3]} 9. O-O {[%clk 0:03:10.9]} 9... cxd5 {[%clk 0:03:09.4]}
10. h3 {[%clk 0:03:10.5]} 10... h6 {[%clk 0:03:08.2]} 11. Qf3 {[%clk 0:03:10.4]}
11... Be6 {[%clk 0:03:06.8]} 12. Ne2 {[%clk 0:03:06.8]} 12... Bd6 {[%clk
0:02:59.2]} 13. Bf4 {[%clk 0:03:06.5]} 13... c5 {[%clk 0:02:55.6]} 14. b3 {[%clk
0:03:04.8]} 14... a5 {[%clk 0:02:29.6]} 15. Rad1 {[%clk 0:02:45]} 15... Re8
{[%clk 0:02:14.6]} 16. Bb5 {[%clk 0:02:03.9]} 16... Bd7 {[%clk 0:01:40]} 17.
Bxd7 {[%clk 0:01:29.9]} 17... Qxd7 {[%clk 0:01:39.7]} 18. Bxh6 {[%clk
0:01:29.2]} 18... gxh6 {[%clk 0:01:29.7]} 19. Qxf6 {[%clk 0:01:28.3]} 19... Rxe2
{[%clk 0:01:29.2]} 20. Qxh6 {[%clk 0:01:19.8]} 20... Re6 {[%clk 0:01:10.5]} 21.
Qg5+ {[%clk 0:01:18.3]} 21... Rg6 {[%clk 0:01:11.4]} 22. Qxd5 {[%clk 0:01:18.6]}
22... Rd8 {[%clk 0:01:04.7]} 23. Qf3 {[%clk 0:01:14.9]} 23... Re8 {[%clk
0:00:46.3]} 24. Rd3 {[%clk 0:01:10.5]} 24... Ree6 {[%clk 0:00:44.4]} 25. Rfd1
{[%clk 0:01:07.6]} 25... Ref6 {[%clk 0:00:44]} 26. Qh5 {[%clk 0:01:01.4]} 26...
Kg7 {[%clk 0:00:41.7]} 27. f3 {[%clk 0:00:47.6]} 27... Qe7 {[%clk 0:00:38]} 28.
Qh4 {[%clk 0:00:32.5]} 28... Qe2 {[%clk 0:00:27.4]} 29. Qf2 {[%clk 0:00:33]}
29... Bh2+ {[%clk 0:00:27.3]} 0-1

[Event "*** Titled Tuesday Blitz"]
[Site "Chess.com"]
[Date "2019.01.01"]
[Round "10"]
[White "JozefKneht"]
[Black "Quiet_Desperation"]
[Result "1-0"]
[WhiteElo "2522"]
[BlackElo "2382"]
[TimeControl "180+2"]
[EndTime "15:20:36 PST"]
[Termination "JozefKneht won by resignation"]

1. e4 {[%clk 0:03:01.9]} 1... Nc6 {[%clk 0:02:58.4]} 2. Nf3 {[%clk 0:03:01.7]}
2... d6 {[%clk 0:02:58]} 3. d4 {[%clk 0:03:02.7]} 3... Nf6 {[%clk 0:02:59.3]} 4.
Nc3 {[%clk 0:03:03.7]} 4... d5 {[%clk 0:03:00.9]} 5. e5 {[%clk 0:03:02.6]} 5...
Ne4 {[%clk 0:03:02.2]} 6. Bd3 {[%clk 0:03:00.9]} 6... Bf5 {[%clk 0:03:03]} 7.
O-O {[%clk 0:03:00.4]} 7... e6 {[%clk 0:03:04.5]} 8. Ne2 {[%clk 0:02:58.3]} 8...
Be7 {[%clk 0:03:05.4]} 9. c3 {[%clk 0:02:58.3]} 9... O-O {[%clk 0:03:06.2]} 10.
h3 {[%clk 0:02:58.5]} 10... Na5 {[%clk 0:03:05.3]} 11. g4 {[%clk 0:02:59.2]}
11... Bg6 {[%clk 0:03:05.4]} 12. Nf4 {[%clk 0:03:00.4]} 12... b6 {[%clk
0:03:01.4]} 13. Kg2 {[%clk 0:02:55]} 13... c5 {[%clk 0:03:02.1]} 14. Rh1 {[%clk
0:02:44.3]} 14... Rc8 {[%clk 0:02:54.9]} 15. h4 {[%clk 0:02:44.7]} 15... f5
{[%clk 0:02:33.5]} 16. exf6 {[%clk 0:02:31]} 16... Rxf6 {[%clk 0:02:31.8]} 17.
g5 {[%clk 0:02:31.3]} 17... Rxf4 {[%clk 0:02:32.8]} 18. Bxf4 {[%clk 0:02:31.6]}
18... Bd6 {[%clk 0:02:31.4]} 19. Bxd6 {[%clk 0:02:31.1]} 19... Qxd6 {[%clk
0:02:32.5]} 20. Ne5 {[%clk 0:02:32.1]} 20... Bf5 {[%clk 0:02:27.8]} 21. f3
{[%clk 0:02:30.8]} 21... cxd4 {[%clk 0:02:25.3]} 22. cxd4 {[%clk 0:02:30.8]}
22... Nc4 {[%clk 0:02:15.2]} 23. Bxc4 {[%clk 0:02:19]} 23... dxc4 {[%clk
0:02:11.2]} 24. fxe4 {[%clk 0:02:11.3]} 24... Bxe4+ {[%clk 0:02:12.6]} 25. Kg1
{[%clk 0:01:57.8]} 25... c3 {[%clk 0:01:56.2]} 26. Rh2 {[%clk 0:01:45.4]} 26...
c2 {[%clk 0:01:56.2]} 27. Qd2 {[%clk 0:01:45.8]} 27... Bf5 {[%clk 0:01:25.5]}
28. Rc1 {[%clk 0:01:37]} 28... Qd5 {[%clk 0:01:20.4]} 29. Rf2 {[%clk 0:01:35.3]}
29... Qe4 {[%clk 0:01:17.9]} 30. Rf4 {[%clk 0:01:34.5]} 30... Qd5 {[%clk
0:01:16.4]} 31. Kh2 {[%clk 0:01:19.9]} 31... Rd8 {[%clk 0:01:17]} 32. Rxc2
{[%clk 0:01:15.1]} 32... Bxc2 {[%clk 0:01:12.4]} 33. Qxc2 {[%clk 0:01:15.5]}
33... Qxa2 {[%clk 0:01:04.4]} 34. g6 {[%clk 0:01:07.5]} 34... hxg6 {[%clk
0:01:03.3]} 35. Qxg6 {[%clk 0:01:02.8]} 35... Qxb2+ {[%clk 0:01:04.3]} 36. Kh3
{[%clk 0:01:00.6]} 36... Qb3+ {[%clk 0:00:42.8]} 37. Rf3 {[%clk 0:00:59.6]}
37... Qd5 {[%clk 0:00:40.3]} 38. Rg3 {[%clk 0:01:00]} 38... Qb7 {[%clk
0:00:37.7]} 39. Qxe6+ {[%clk 0:00:57.2]} 39... Kh8 {[%clk 0:00:39]} 40. Nf7+
{[%clk 0:00:57.1]} 1-0

[Event "*** Titled Tuesday Blitz"]
[Site "Chess.com"]
[Date "2019.01.01"]
[Round "10"]
[White "PulpanJ"]
[Black "gemarin"]
[Result "1-0"]
[WhiteElo "2602"]
[BlackElo "2086"]
[TimeControl "180+2"]
[EndTime "15:20:38 PST"]
[Termination "PulpanJ won by resignation"]

1. e4 {[%clk 0:03:01.9]} 1... c5 {[%clk 0:02:58.2]} 2. Nf3 {[%clk 0:02:51.9]}
2... Nc6 {[%clk 0:02:57.3]} 3. Bb5 {[%clk 0:02:43.8]} 3... Qc7 {[%clk
0:02:48.3]} 4. Nc3 {[%clk 0:02:42.1]} 4... e6 {[%clk 0:02:45.7]} 5. Bxc6 {[%clk
0:02:27.5]} 5... Qxc6 {[%clk 0:02:45]} 6. O-O {[%clk 0:02:26.8]} 6... Nf6 {[%clk
0:02:42.1]} 7. Re1 {[%clk 0:02:21.5]} 7... Be7 {[%clk 0:02:36.3]} 8. d4 {[%clk
0:02:04]} 8... cxd4 {[%clk 0:02:32.6]} 9. Nxd4 {[%clk 0:02:04.7]} 9... Qc4
{[%clk 0:02:25.8]} 10. Ndb5 {[%clk 0:02:01.9]} 10... O-O {[%clk 0:02:22.9]} 11.
Nd6 {[%clk 0:01:49.5]} 11... Qc6 {[%clk 0:02:03.8]} 12. Bf4 {[%clk 0:01:47.4]}
12... b6 {[%clk 0:01:56.3]} 13. e5 {[%clk 0:01:11.5]} 13... Ne8 {[%clk
0:01:42.8]} 14. Nxc8 {[%clk 0:01:04.9]} 14... Rxc8 {[%clk 0:01:41.8]} 15. Re3
{[%clk 0:00:51.5]} 15... f6 {[%clk 0:01:22.9]} 16. Qd2 {[%clk 0:00:42.6]} 16...
Bc5 {[%clk 0:01:11.4]} 17. Re2 {[%clk 0:00:36.7]} 17... fxe5 {[%clk 0:01:08.1]}
18. Bxe5 {[%clk 0:00:38.6]} 18... d6 {[%clk 0:00:49.4]} 19. Bd4 {[%clk
0:00:35.8]} 19... Bb4 {[%clk 0:00:33.7]} 20. Rxe6 {[%clk 0:00:32.4]} 20... Nc7
{[%clk 0:00:17.4]} 21. Re7 {[%clk 0:00:29]} 21... Rf7 {[%clk 0:00:16.9]} 22.
Rxf7 {[%clk 0:00:29.7]} 22... Kxf7 {[%clk 0:00:17.4]} 23. Qg5 {[%clk 0:00:26.5]}
23... Ne6 {[%clk 0:00:17.3]} 24. Qf5+ {[%clk 0:00:25.3]} 24... Ke7 {[%clk
0:00:16.6]} 25. Nd5+ {[%clk 0:00:26.8]} 1-0